fUST/lending_fUST_20250705
["ID","MTS","AMOUNT","RATE_DAILY","PERIOD"]
[369627103,1751657439818,-160.0,0.00017257,2]
[369627104,1751657439827,-160.0,0.00017257,2]
[369627105,1751657439837,-160.0,0.00017257,2]
[369627106,1751657439847,-837.48520791,0.00017257,2]
[369627107,1751657439856,-230.40116161,0.00017257,2]
[369627108,1751657439866,-460.0,0.0001726,2]
[369627109,1751657439876,-460.0,0.0001726,2]
[369627110,1751657439885,-844.51,0.0001726,2]
[369627111,1751657439895,-460.0,0.0001726,2]
[369627112,1751657439904,-460.0,0.0001726,2]
[369627113,1751657439913,-601.65,0.0001726,2]
[369627114,1751657439923,-460.0,0.0001726,2]
[369627115,1751657439932,-460.0,0.0001726,2]
[369627116,1751657439943,-460.0,0.0001726,2]
[369627117,1751657439952,-460.0,0.0001726,2]
[369627118,1751657439961,-460.0,0.0001726,2]
[369627119,1751657439970,-460.0,0.0001726,2]
[369627120,1751657439980,-460.0,0.0001726,2]
[369627121,1751657439989,-443.03,0.000173,2]
[369627122,1751657439999,-774.14050891,0.00017322,2]
[369627123,1751657440009,-500.0,0.00017329,2]
[369627124,1751657440018,-207.4,0.00017428,2]
[369627125,1751657440027,-38.59682893,0.00017452,2]
[369627126,1751657440040,-1888.37645937,0.00017452,2]
[369627127,1751657440049,-255.26930571,0.00017534,2]
[369627128,1751657440230,-460.0,0.00017534,2]
[369627129,1751657440240,-844.51,0.00017534,2]
[369627130,1751657440250,-177.16087281,0.00017534,2]
[369627133,1751657440262,-282.83912719,0.00017534,2]
[369627134,1751657440271,-460.0,0.00017534,2]
[369627136,1751657440281,-460.0,0.00017534,2]
[369627137,1751657440290,-460.0,0.00017534,2]
[369627138,1751657440299,-460.0,0.00017534,2]
[369627139,1751657440309,-460.0,0.00017534,2]
[369627140,1751657440321,-460.0,0.00017534,2]
[369627141,1751657440331,-460.0,0.00017534,2]
[369627142,1751657440340,-460.0,0.00017534,2]
[369627143,1751657440349,-150.541571,0.00017571,3]
[369627144,1751657440360,-455.5235623,0.00017603,2]
[369627145,1751657440372,-44.4764377,0.00017603,2]
[369627146,1751657440381,-222.92494181,0.00017653,2]
[369627147,1751657440392,-1926.9732883,0.00017728,2]
[369627148,1751657440401,-684.8744901,0.00017769,2]
[369627149,1751657440410,-500.43844311,0.00017804,2]
[369627150,1751657440419,-500.0,0.00017804,2]
[369627151,1751657440430,-500.0,0.00017804,2]
[369627152,1751657440439,-500.0,0.00017804,2]
[369627153,1751657440448,-460.0,0.00017808,2]
[369627154,1751657440457,-361.04515682,0.00017808,2]
[369627155,1751657440811,-330.154,0.00017808,2]
[369627156,1751657440822,-153.31084318,0.00017808,2]
[369627157,1751657440831,-460.0,0.00017808,2]
[369627158,1751657440842,-330.28915693,0.00017808,2]
[369627159,1751657440865,-129.71084307,0.00017808,2]
[369627160,1751657440874,-460.0,0.00017808,2]
[369627161,1751657440883,-32.68996022,0.00017808,2]
[369627189,1751657446559,-427.31003978,0.00017808,2]
[369627190,1751657446568,-460.0,0.00017808,2]
[369627191,1751657446578,-460.0,0.00017808,2]
[369627192,1751657446588,-233.53996022,0.00017808,2]
[369627193,1751657446668,-226.46003978,0.00017808,2]
[369627194,1751657446677,-460.0,0.00017808,2]
[369627195,1751657446686,-460.0,0.00017808,2]
[369627196,1751657446696,-141.61996022,0.00017817,2]
[369627197,1751657446707,-546.87502978,0.00017817,2]
[369627198,1751657446717,-366.5311405,0.00017817,2]
[369627199,1751657446726,-731.3175442,0.00017817,2]
[369627200,1751657446735,-151.0,0.00017817,2]
[369627201,1751657446744,-286.18,0.00018,2]
[369627202,1751657446754,-286.18,0.00018,2]
[369627203,1751657446762,-286.18,0.00018,2]
[369627204,1751657446772,-151.0,0.00018,2]
[369627205,1751657446781,-1926.9732883,0.00018003,2]
[369627206,1751657446791,-219.39916906,0.00018021,2]
[369627207,1751657446800,-151.0,0.00018081,2]
[369627208,1751657446810,-151.0,0.00018082,2]
[369627209,1751657446819,-844.51,0.00018082,2]
[369627210,1751657446828,-460.0,0.00018082,2]
[369627211,1751657446837,-460.0,0.00018082,2]
[369627212,1751657446846,-460.0,0.00018082,2]
[369627213,1751657446856,-607.91,0.00018082,2]
[369627214,1751657446865,-460.0,0.00018082,2]
[369627215,1751657446874,-460.0,0.00018082,2]
[369627216,1751657446884,-460.0,0.00018082,2]
[369627217,1751657446893,-460.0,0.00018082,2]
[369627218,1751657446903,-460.0,0.00018082,2]
[369627219,1751657446912,-3770.4000929,0.00018082,2]
[369627220,1751657446922,-1926.9732883,0.00018279,2]
[369627221,1751657446931,-500.0,0.0001832,2]
[369627222,1751657446940,-500.0,0.0001832,2]
[369627223,1751657446949,-166.666684,0.00018348,2]
[369627224,1751657446959,-1000.0,0.00018352,2]
[369627225,1751657446968,-1000.0,0.00018352,2]
[369627226,1751657446977,-1000.0,0.00018352,2]
[369627227,1751657446986,-844.51,0.00018356,2]
[369627228,1751657446994,-460.0,0.00018356,2]
[369627229,1751657447004,-460.0,0.00018356,2]
[369627230,1751657447013,-460.0,0.00018356,2]
[369627231,1751657447023,-460.0,0.00018356,2]
[369627232,1751657447032,-460.0,0.00018356,2]
[369627233,1751657447041,-460.0,0.00018356,2]
[369627234,1751657447051,-460.0,0.00018356,2]
[369627235,1751657447060,-460.0,0.00018356,2]
[369627236,1751657447069,-500.0,0.00018397,2]
[369627237,1751657447078,-190.63004398,0.00018397,2]
[369627238,1751657447087,-684.8744901,0.00018479,2]
[369627239,1751657447096,-500.0,0.00018511,2]
[369627240,1751657447106,-500.0,0.0001852,2]
[369627241,1751657447115,-500.0,0.0001852,2]
[369627243,1751657447124,-2200.0,0.00018551,2]
[369627244,1751657447133,-1926.9732883,0.00018555,2]
[369627245,1751657447142,-169.166666,0.0001861,2]
[369627246,1751657447151,-151.0,0.0001863,2]
[369627247,1751657447160,-844.51,0.0001863,2]
[369627248,1751657447169,-460.0,0.0001863,2]
[369627249,1751657447178,-460.0,0.0001863,2]
[369627250,1751657447187,-419.8346584,0.0001863,2]
[369627251,1751657447197,-460.0,0.0001863,2]
[369627252,1751657447206,-460.0,0.0001863,2]
[369627253,1751657447216,-460.0,0.0001863,2]
[369627254,1751657447226,-460.0,0.0001863,2]
[369627255,1751657447235,-460.0,0.0001863,2]
[369627256,1751657447245,-177.6838736,0.00018639,2]
[369627257,1751657447254,-159.4209444,0.00018639,2]
[369627258,1751657447263,-153.0,0.00018639,2]
[369627259,1751657447272,-177.6838736,0.00018639,2]
[369627260,1751657447281,-159.4209444,0.00018639,2]
[369627261,1751657447291,-153.0,0.00018639,2]
[369627262,1751657447300,-159.4209444,0.00018639,2]
[369627263,1751657447309,-153.0,0.00018639,2]
[369627264,1751657447323,-177.6838736,0.00018639,2]
[369627265,1751657447332,-169.166666,0.00018695,2]
[369627266,1751657447341,-500.0,0.0001872,2]
[369627267,1751657447350,-155.84540809,0.00018729,2]
[369627268,1751657447361,-169.166666,0.0001878,2]
[369627269,1751657447370,-215.0738,0.00018797,2]
[369627270,1751657447380,-67825.35895103,0.00018829,2]
[369627271,1751657447390,-291.524814,0.00018829,2]
[369627272,1751657447399,-151.0,0.00018829,2]
[369627273,1751657447408,-273.648456,0.00018829,2]
[369627274,1751657447418,-151.0,0.00018829,2]
[369627275,1751657447427,-208.161704,0.00018829,2]
[369627276,1751657447436,-208.161704,0.00018829,2]
[369627277,1751657447446,-151.0,0.00018829,2]
[369627278,1751657447455,-151.0,0.00018829,2]
[369627279,1751657447464,-151.0,0.00018829,2]
[369627280,1751657447473,-240.64818,0.00018829,2]
[369627281,1751657447482,-151.0,0.00018829,2]
[369627282,1751657447491,-1926.9732883,0.00018831,2]
[369627283,1751657447501,-169.166666,0.00018865,2]
[369627284,1751657447510,-4004.21379278,0.000189,2]
[369627285,1751657447519,-500.0,0.000189,2]
[369627286,1751657447528,-469.92915345,0.000189,2]
[369627287,1751657447537,-1500.0,0.000189,2]
[369627288,1751657447546,-844.51,0.00018904,2]
[369627289,1751657447555,-396.08942423,0.00018904,2]
[369627290,1751657447565,-460.0,0.00018904,2]
[369627291,1751657447574,-460.0,0.00018904,2]
[369627292,1751657447583,-460.0,0.00018904,2]
[369627293,1751657447592,-460.0,0.00018904,2]
[369627294,1751657447602,-251.21336538,0.00018904,2]
[369627295,1751657447611,-460.0,0.00018904,2]
[369627296,1751657447621,-500.0,0.0001892,2]
[369627297,1751657447630,-288.522131,0.00018942,2]
[369627298,1751657447639,-177.087,0.00018942,2]
[369627299,1751657447648,-249.74738731,0.00018944,2]
[369627300,1751657447657,-169.166666,0.00018951,2]
[369627301,1751657447666,-302.57643837,0.00019,2]
[369627302,1751657447675,-9088.43575008,0.00019,2]
[369627303,1751657447685,-185.57756852,0.0001901,2]
[369627304,1751657447695,-169.166666,0.00019036,2]
[369627305,1751657447703,-960.0,0.00019078,2]
[369627306,1751657447713,-1926.9732883,0.00019107,2]
[369627307,1751657447723,-169.166666,0.00019121,2]
[369627308,1751657447732,-844.51,0.00019178,2]
[369627309,1751657447742,-460.0,0.00019178,2]
[369627310,1751657447751,-460.0,0.00019178,2]
[369627311,1751657447761,-460.0,0.00019178,2]
[369627312,1751657447770,-460.0,0.00019178,2]
[369627313,1751657447779,-460.0,0.00019178,2]
[369627314,1751657447788,-786.746865,0.00019178,2]
[369627315,1751657447798,-666.0,0.00019178,2]
[369627316,1751657447807,-684.8744901,0.0001919,2]
[369627317,1751657447816,-302.57643837,0.0001919,2]
[369627318,1751657447825,-169.166666,0.00019206,2]
[369627319,1751657447838,-169.166666,0.00019291,2]
[369627320,1751657447848,-2000.0,0.000193,2]
[369627321,1751657447857,-2000.0,0.000193,2]
[369627322,1751657447866,-500.0,0.0001932,2]
[369627323,1751657447876,-500.0,0.0001932,2]
[369627324,1751657447885,-500.0,0.0001932,2]
[369627325,1751657447895,-151.0,0.00019329,2]
[369627326,1751657447904,-7547.33018389,0.00019329,2]
[369627327,1751657447914,-241.666666,0.00019335,2]
[369627328,1751657447923,-169.166666,0.00019377,2]
[369627329,1751657447933,-302.57643837,0.0001938,2]
[369627330,1751657447943,-960.0,0.00019382,2]
[369627331,1751657447952,-1926.9732883,0.00019383,2]
[369627332,1751657447962,-151.0,0.00019383,3]
[369627333,1751657447971,-241.666666,0.00019418,2]
[369627334,1751657447980,-2000.0,0.00019448,2]
[369627335,1751657447989,-265.727309,0.00019452,2]
[369627336,1751657447999,-844.51,0.00019452,2]
[369627337,1751657448010,-460.0,0.00019452,2]
[369627338,1751657448019,-460.0,0.00019452,2]
[369627339,1751657448028,-460.0,0.00019452,2]
[369627340,1751657448038,-460.0,0.00019452,2]
[369627341,1751657448048,-460.0,0.00019452,2]
[369627342,1751657448058,-159.4209444,0.00019461,2]
[369627343,1751657448067,-177.6838736,0.00019461,2]
[369627344,1751657448077,-159.4209444,0.00019461,2]
[369627345,1751657448086,-177.6838736,0.00019461,2]
[369627346,1751657448096,-159.4209444,0.00019461,2]
[369627347,1751657448105,-177.6838736,0.00019461,2]
[369627348,1751657448115,-159.4209444,0.00019461,2]
[369627349,1751657448124,-177.6838736,0.00019461,2]
[369627350,1751657448136,-177.6838736,0.00019461,2]
[369627351,1751657448146,-159.4209444,0.00019461,2]
[369627352,1751657448156,-159.4209444,0.00019461,2]
[369627353,1751657448168,-176.0910451,0.00019461,2]
[369627354,1751657448182,-159.4209444,0.00019461,2]
[369627355,1751657448192,-151.0,0.00019461,2]
[369627356,1751657448202,-151.0,0.00019461,2]
[369627357,1751657448214,-169.166666,0.00019462,2]
[369627358,1751657448224,-200.0,0.00019499,2]
[369627359,1751657448234,-217.298824,0.000195,2]
[369627360,1751657448243,-151.0,0.000195,2]
[369627361,1751657448254,-208.161704,0.000195,2]
[369627362,1751657448264,-208.161704,0.000195,2]
[369627363,1751657448274,-537.24318089,0.000195,2]
[369627367,1751658039002,345.295458,0.00013699,2]
[369627385,1751658631788,-300.0,0.00015741,2]
[369627386,1751658631798,-202.0,0.00015741,2]
[369627387,1751658631808,-300.0,0.00015741,2]
[369627388,1751658631818,-1200.0,0.00015741,2]
[369627389,1751658631827,-40.21956659,0.00015742,2]
[369627498,1751658637979,-1962.23720794,0.00015585,2]
[369627499,1751658637989,-1690.74096038,0.00015742,2]
[369627500,1751658638001,-515.95806706,0.00015742,2]
[369627790,1751658643006,-3667.01495075,0.00015742,2]
[369628106,1751658645931,-18986.06645522,0.00015742,2]
[369628108,1751658645940,-345.35416084,0.00016133,2]
[369628118,1751658646036,-3131.65064256,0.00016133,2]
[369628120,1751658646046,-576.58729999,0.00016337,2]
[369628122,1751658646055,-3730.78959587,0.00016437,2]
[369628124,1751658646064,-500.0,0.00016437,2]
[369628126,1751658646073,-594.81627096,0.00016437,2]
[369628128,1751658646082,-166.08156135,0.00016437,2]
[369628130,1751658646091,-576.9521287,0.00016437,2]
[369628132,1751658646100,-300.0,0.00016437,2]
[369628134,1751658646109,-500.0,0.00016437,2]
[369628136,1751658646118,-500.0,0.00016437,2]
[369628138,1751658646127,-500.0,0.00016437,2]
[369628140,1751658646136,-500.0,0.00016437,2]
[369628142,1751658646146,-500.0,0.00016437,2]
[369628144,1751658646155,-500.0,0.00016437,2]
[369628146,1751658646165,-500.0,0.00016437,2]
[369628148,1751658646175,-500.0,0.00016437,2]
[369628150,1751658646184,-325.21453456,0.00016437,2]
[369628152,1751658646193,-500.0,0.00016437,2]
[369628155,1751658646203,-500.0,0.00016437,2]
[369628157,1751658646212,-500.0,0.00016437,2]
[369628159,1751658646221,-508.68933873,0.00016437,2]
[369628161,1751658646230,-500.0,0.00016437,2]
[369628162,1751658646239,-460.0,0.00016438,2]
[369628165,1751658646251,-460.0,0.00016438,2]
[369628166,1751658646260,-369.02181348,0.00016438,2]
[369628168,1751658646269,-239.90736306,0.00016438,2]
[369628170,1751658646278,-460.0,0.00016438,2]
[369628172,1751658646287,-228.83843004,0.00016438,2]
[369628174,1751658646296,-460.0,0.00016438,2]
[369628176,1751658646305,-460.0,0.00016438,2]
[369628178,1751658646313,-460.0,0.00016438,2]
[369628180,1751658646323,-460.0,0.00016438,2]
[369628183,1751658646332,-460.0,0.00016438,2]
[369628185,1751658646342,-460.0,0.00016438,2]
[369628187,1751658646351,-460.0,0.00016438,2]
[369628189,1751658646360,-460.70542833,0.00016438,2]
[369628191,1751658646369,-460.0,0.00016438,2]
[369628193,1751658646378,-460.0,0.00016438,2]
[369628195,1751658646388,-460.0,0.00016438,2]
[369628197,1751658646397,-460.0,0.00016438,2]
[369628199,1751658646406,-460.0,0.00016438,2]
[369628201,1751658646416,-346.14872909,0.00016438,2]
[369628203,1751658646426,-460.0,0.00016438,2]
[369628204,1751658646435,-607.99699278,0.00016438,2]
[369628206,1751658646445,-460.0,0.00016438,2]
[369628208,1751658646454,-191.63929354,0.00016438,2]
[369629487,1751659087673,328.030685,0.00013699,2]
[369629489,1751659619198,-300.0,0.00015437,2]
[369629490,1751659619222,-14053.144029,0.00015438,2]
[369629885,1751659838339,-355.799998,0.00015438,2]
[369629886,1751659838351,-10491.055973,0.00015438,2]
[369629887,1751659838361,-504.5138875,0.00016338,2]
[369629888,1751659838371,-500.0,0.00016433,2]
[369629889,1751659838380,-500.0,0.00016433,2]
[369629890,1751659838389,-271.74462188,0.00016433,2]
[369629891,1751659838399,-500.0,0.00016433,2]
[369629892,1751659838408,-551.18632684,0.00016433,2]
[369629893,1751659838417,-500.0,0.00016433,2]
[369629894,1751659838427,-500.0,0.00016433,2]
[369629895,1751659838436,-359.17790479,0.00016433,2]
[369629896,1751659838446,-500.0,0.00016433,2]
[369629897,1751659838455,-500.0,0.00016433,2]
[369629898,1751659838465,-500.0,0.00016433,2]
[369629899,1751659838474,-429.79450631,0.00016433,2]
[369629900,1751659838484,-500.0,0.00016433,2]
[369629901,1751659838493,-369.04750587,0.00016433,2]
[369629902,1751659838502,-500.0,0.00016433,2]
[369629904,1751659838511,-500.0,0.00016433,2]
[369629906,1751659838521,-500.0,0.00016433,2]
[369629908,1751659838530,-500.0,0.00016433,2]
[369629910,1751659838539,-500.0,0.00016433,2]
[369629912,1751659838548,-500.0,0.00016433,2]
[369629914,1751659838558,-500.0,0.00016433,2]
[369629916,1751659838567,-500.0,0.00016433,2]
[369629918,1751659838576,-500.0,0.00016433,2]
[369629920,1751659838585,-500.0,0.00016433,2]
[369629922,1751659838595,-500.0,0.00016433,2]
[369629924,1751659838604,-538.02367765,0.00016433,2]
[369629926,1751659838613,-500.0,0.00016433,2]
[369629928,1751659838622,-500.0,0.00016433,2]
[369629931,1751659838631,-500.0,0.00016433,2]
[369629932,1751659838641,-500.0,0.00016433,2]
[369629934,1751659838650,-500.0,0.00016433,2]
[369629939,1751659838660,-459.92512,0.00016433,2]
[369629940,1751659838823,-500.0,0.00016433,2]
[369629941,1751659838833,-727.01635082,0.00016434,2]
[369629942,1751659838847,-9957.66364694,0.00016434,2]
[369629943,1751659838863,-2272.35521609,0.00016434,2]
[369629944,1751659838874,-538.8155538,0.00016434,2]
[369629945,1751659838886,-5971.60465169,0.00016434,2]
[369630086,1751659843123,-1197.74380001,0.00015283,2]
[369630088,1751659843132,-397.04998099,0.00016434,2]
[369630090,1751659843144,-976.5749985,0.00016434,2]
[369630092,1751659843157,-5725.57772725,0.00016434,2]
[369630094,1751659843166,-460.0,0.00016438,2]
[369630096,1751659843176,-460.0,0.00016438,2]
[369630098,1751659843185,-460.0,0.00016438,2]
[369630100,1751659843194,-441.785092,0.00016438,2]
[369630102,1751659843203,-584.01,0.00016438,2]
[369630104,1751659843212,-390.85349495,0.00016438,2]
[369630106,1751659843222,-460.0,0.00016438,2]
[369630108,1751659843231,-460.0,0.00016438,2]
[369630110,1751659843241,-460.0,0.00016438,2]
[369630112,1751659843250,-460.0,0.00016438,2]
[369630114,1751659843260,-500.0,0.00016438,2]
[369630116,1751659843269,-461.01,0.00016438,2]
[369630118,1751659843278,-353.42500665,0.00016438,2]
[369630120,1751659843293,-460.0,0.00016438,2]
[369630122,1751659843302,-460.0,0.00016438,2]
[369630125,1751659843311,-268.87006908,0.00016438,2]
[369630410,1751659846043,-191.12993092,0.00016438,2]
[369630412,1751659846052,-460.0,0.00016438,2]
[369630414,1751659846061,-460.0,0.00016438,2]
[369630416,1751659846071,-460.0,0.00016438,2]
[369630418,1751659846080,-605.92,0.00016438,2]
[369630420,1751659846090,-460.0,0.00016438,2]
[369630422,1751659846099,-460.0,0.00016438,2]
[369630424,1751659846109,-461.59009056,0.00016438,2]
[369630426,1751659846119,-460.0,0.00016438,2]
[369630428,1751659846128,-460.0,0.00016438,2]
[369630430,1751659846137,-460.0,0.00016438,2]
[369630432,1751659846147,-460.0,0.00016438,2]
[369630434,1751659846158,-457.05292024,0.00016438,2]
[369630437,1751659846169,-460.0,0.00016438,2]
[369630440,1751659846182,-460.0,0.00016438,2]
[369630441,1751659846191,-460.0,0.00016438,2]
[369630444,1751659846201,-460.0,0.00016438,2]
[369630446,1751659846210,-460.0,0.00016438,2]
[369630448,1751659846220,-460.0,0.00016438,2]
[369630450,1751659846228,-460.0,0.00016438,2]
[369630452,1751659846238,-460.0,0.00016438,2]
[369630454,1751659846247,-460.0,0.00016438,2]
[369630456,1751659846256,-460.0,0.00016438,2]
[369630458,1751659846266,-187.48178197,0.00016438,2]
[369630460,1751659846275,-460.0,0.00016438,2]
[369630461,1751659846285,-158.42129224,0.00016438,2]
[369630464,1751659846297,-460.0,0.00016438,2]
[369630465,1751659846307,-270.17270372,0.00016438,2]
[369630467,1751659846316,-460.0,0.00016438,2]
[369630469,1751659846326,-460.0,0.00016438,2]
[369630471,1751659846335,-460.0,0.00016438,2]
[369630473,1751659846345,-460.0,0.00016438,2]
[369630475,1751659846354,-460.0,0.00016438,2]
[369630477,1751659846363,-460.0,0.00016438,2]
[369630479,1751659846374,-460.0,0.00016438,2]
[369630482,1751659846384,-460.0,0.00016438,2]
[369630484,1751659846393,-460.0,0.00016438,2]
[369630486,1751659846403,-460.0,0.00016438,2]
[369630488,1751659846412,-460.0,0.00016438,2]
[369630490,1751659846424,-515.09853872,0.00016438,2]
[369630491,1751659846434,-463.35143911,0.00016438,2]
[369630494,1751659846443,-508.67153228,0.00016438,2]
[369630496,1751659846453,-461.42528736,0.00016438,2]
[369630497,1751659846462,-154.92080253,0.00016438,2]
[369630500,1751659846472,-460.0,0.00016438,2]
[369630502,1751659846481,-460.0,0.00016438,2]
[369630504,1751659846491,-460.0,0.00016438,2]
[369630506,1751659846500,-460.0,0.00016438,2]
[369630508,1751659846509,-460.0,0.00016438,2]
[369630510,1751659846519,-175.28,0.00016438,2]
[369630512,1751659846528,-505.27,0.00016438,2]
[369630514,1751659846538,-465.13405533,0.00016438,2]
[369630516,1751659846547,-460.0,0.00016712,2]
[369630518,1751659846556,-537.1634757,0.00016712,2]
[369630520,1751659846566,-242.79707853,0.00016712,2]
[369630522,1751659846575,-460.0,0.00016712,2]
[369630524,1751659846584,-460.0,0.00016712,2]
[369630525,1751659846593,-460.0,0.00016712,2]
[369630528,1751659846604,-460.0,0.00016712,2]
[369630530,1751659846614,-460.0,0.00016986,2]
[369630531,1751659846623,-460.0,0.00016986,2]
[369630533,1751659846632,-460.0,0.00016986,2]
[369630535,1751659846642,-460.0,0.00016986,2]
[369630537,1751659846651,-157.06112078,0.0001701,2]
[369630539,1751659846660,-500.0,0.0001701,2]
[369630541,1751659846669,-500.0,0.0001701,2]
[369630543,1751659846679,-171.21862254,0.00017076,2]
[369630545,1751659846690,-19594.02591684,0.00017134,2]
[369630547,1751659846699,-460.0,0.0001726,2]
[369630548,1751659846708,-460.0,0.0001726,2]
[369630549,1751659846717,-460.0,0.0001726,2]
[369630550,1751659846726,-460.0,0.0001726,2]
[369630551,1751659846735,-837.48520791,0.00017299,2]
[369630552,1751659846744,-230.40116161,0.00017299,2]
[369630553,1751659846753,-215.11345689,0.00017299,2]
[369630554,1751659846762,-847.91215827,0.00017299,2]
[369630555,1751659846771,-160.0,0.00017299,2]
[369630556,1751659846780,-524.86301716,0.00017299,2]
[369630557,1751659846789,-398.72,0.000173,2]
[369630558,1751659846798,-504.51388746,0.00017477,2]
[369630559,1751659846808,-460.0,0.00017534,2]
[369630560,1751659846817,-514.5,0.00017534,2]
[369630561,1751659846826,-460.0,0.00017534,2]
[369630562,1751659846836,-460.0,0.00017534,2]
[369630563,1751659846845,-1000.0,0.00017558,2]
[369630564,1751659846855,-169.166667,0.00017753,2]
[369630565,1751659846865,-460.0,0.00017808,2]
[369630566,1751659846874,-460.0,0.00017808,2]
[369630567,1751659846883,-460.0,0.00017808,2]
[369630568,1751659846892,-1783.32851038,0.00017982,2]
[369630569,1751659846901,-171.21862252,0.00018017,2]
[369630570,1751659846910,-169.166667,0.00018062,2]
[369630571,1751659846919,-460.0,0.00018082,2]
[369630573,1751659846928,-460.0,0.00018082,2]
[369630575,1751659846938,-522.74,0.00018082,2]
[369630577,1751659846947,-1500.0,0.00018106,2]
[369630579,1751659846957,-406.0,0.00018211,2]
[369630581,1751659846966,-1126.73402834,0.00018231,2]
[369630583,1751659846975,-460.0,0.00018356,2]
[369630585,1751659846985,-460.0,0.00018356,2]
[369630587,1751659846994,-169.166667,0.00018371,2]
[369630589,1751659847003,-570.89852266,0.0001839,2]
[369630591,1751659847012,-207.4,0.00018443,2]
[369630593,1751659847021,-500.0,0.000185,2]
[369630595,1751659847030,-500.0,0.000185,2]
[369630596,1751659847040,-500.0,0.00018506,2]
[369630599,1751659847052,-394.95457915,0.00018506,2]
[369630601,1751659847062,-500.0,0.00018506,2]
[369630602,1751659847072,-274.19440792,0.00018506,2]
[369630604,1751659847083,-496.67216475,0.00018506,2]
[369630606,1751659847092,-500.0,0.00018506,2]
[369630608,1751659847102,-500.0,0.00018506,2]
[369630610,1751659847114,-500.0,0.00018506,2]
[369630612,1751659847124,-500.0,0.00018506,2]
[369630614,1751659847136,-500.0,0.00018506,2]
[369630616,1751659847145,-500.0,0.00018506,2]
[369630618,1751659847154,-500.0,0.00018506,2]
[369630620,1751659847163,-500.0,0.00018506,2]
[369630622,1751659847173,-500.0,0.00018506,2]
[369630624,1751659847182,-151.0,0.00018508,2]
[369630626,1751659847192,-151.0,0.00018508,2]
[369630628,1751659847201,-1214.23905097,0.00018508,2]
[369630630,1751659847210,-151.0,0.00018555,2]
[369630632,1751659847220,-151.0,0.00018615,2]
[369630634,1751659847234,-504.51388746,0.00018616,2]
[369630636,1751659847244,-329.66259346,0.0001863,2]
[369630638,1751659847254,-460.0,0.0001863,2]
[369630640,1751659847263,-1404.74280049,0.00018654,2]
[369630642,1751659847273,-366.5311405,0.00018658,2]
[369630644,1751659847283,-366.5311405,0.00018658,2]
[369630646,1751659847297,-366.5311405,0.00018658,2]
[369630648,1751659847307,-169.166667,0.00018679,2]
[369630650,1751659847316,-500.0,0.000187,2]
[369630652,1751659847326,-500.0,0.000187,2]
[369630654,1751659847337,-151.0,0.000187,2]
[369630656,1751659847347,-500.0,0.000187,2]
[369630658,1751659847356,-177.088,0.0001872,2]
[369630660,1751659847368,-2200.0,0.00018755,2]
[369630662,1751659847378,-500.0,0.000189,2]
[369630664,1751659847388,-2669.47586186,0.000189,2]
[369630666,1751659847398,-460.0,0.00018904,2]
[369630668,1751659847407,-171.21862252,0.00018959,2]
[369630670,1751659847417,-169.166667,0.00018988,2]
[369630672,1751659847428,-960.0,0.00018998,2]
[369630674,1751659847439,-393.124217,0.0001911,2]
[369630676,1751659847449,-460.0,0.00019178,2]
[369630678,1751659847459,-629.397492,0.00019178,2]
[369630680,1751659847469,-666.0,0.00019178,2]